[Event "January 9 Early 2024"]
[Site "https://www.chess.com"]
[Date "2024.01.11"]
[Round "2"]
[White "Ladan, Nicholas"]
[Black "Garcia Correa, Jose Ricardo"]
[Result "1-0"]
[Board "158"]
[TimeControl "180+1"]
[WhiteFideId "30918855"]
[BlackFideId "5101832"]
[WhiteElo "2485"]
[BlackElo "2223"]
[WhiteTeam "USA"]
[BlackTeam "MEX"]
[WhiteClock "0:00:34"]
[BlackClock "0:00:01"]

1. Nf3 {[%clk 0:02:59]}  c5 {[%clk 0:03:00]} 2. g3 {[%clk 0:03:00]}  d5 {[%clk 0:02:59]} 3. Bg2 {[%clk 0:03:00]}  Nc6 {[%clk 0:03:00]} 4. O-O {[%clk 0:03:00]}  Nf6 {[%clk 0:01:52]} 5. d3 {[%clk 0:02:58]}  e5 {[%clk 0:01:50]} 6. c3 {[%clk 0:02:53]}  Bd6 {[%clk 0:01:49]} 7. Nbd2 {[%clk 0:02:50]}  O-O {[%clk 0:01:48]} 8. Re1 {[%clk 0:02:51]}  Bg4 {[%clk 0:01:46]} 9. Qa4 {[%clk 0:02:47]}  a6 {[%clk 0:01:44]} 10. e4 {[%clk 0:02:40]}  b5 {[%clk 0:01:43]} 11. Qc2 {[%clk 0:02:40]}  d4 {[%clk 0:01:42]} 12. h3 {[%clk 0:02:38]}  Bd7 {[%clk 0:01:40]} 13. a3 {[%clk 0:02:35]}  Rc8 {[%clk 0:01:40]} 14. c4 {[%clk 0:02:34]}  b4 {[%clk 0:01:37]} 15. Nh2 {[%clk 0:02:30]}  a5 {[%clk 0:01:37]} 16. Ndf1 {[%clk 0:02:23]}  h6 {[%clk 0:01:33]} 17. f4 {[%clk 0:02:18]}  Ne7 {[%clk 0:01:29]} 18. f5 {[%clk 0:02:17]}  Kh8 {[%clk 0:01:27]} 19. g4 {[%clk 0:02:16]}  Nfg8 {[%clk 0:01:27]} 20. Ng3 {[%clk 0:02:15]}  Nc6 {[%clk 0:01:25]} 21. Kh1 {[%clk 0:02:12]}  Be7 {[%clk 0:01:25]} 22. Rg1 {[%clk 0:02:10]}  Bh4 {[%clk 0:01:24]} 23. Nh5 {[%clk 0:02:08]}  g6 {[%clk 0:01:21]} 24. Bf3 {[%clk 0:01:42]}  gxh5 {[%clk 0:01:19]} 25. gxh5 {[%clk 0:01:43]}  Bg5 {[%clk 0:01:06]} 26. Qg2 {[%clk 0:01:29]}  Qf6 {[%clk 0:00:58]} 27. Ng4 {[%clk 0:01:15]}  Qg7 {[%clk 0:00:54]} 28. Nf2 {[%clk 0:01:14]}  Qh7 {[%clk 0:00:37]} 29. Bxg5 {[%clk 0:01:10]}  hxg5 {[%clk 0:00:37]} 30. Qxg5 {[%clk 0:01:11]}  Qh6 {[%clk 0:00:36]} 31. h4 {[%clk 0:01:08]}  Nce7 {[%clk 0:00:20]} 32. Ng4 {[%clk 0:01:04]}  Qh7 {[%clk 0:00:15]} 33. Nxe5 {[%clk 0:01:00]}  f6 {[%clk 0:00:11]} 34. Ng6+ {[%clk 0:00:54]}  Kg7 {[%clk 0:00:03]} 35. Qg3 {[%clk 0:00:49]}  Nxg6 {[%clk 0:00:03]} 36. hxg6 {[%clk 0:00:42]}  Qh6 {[%clk 0:00:03]} 37. Rae1 {[%clk 0:00:35]}  Rfe8 {[%clk 0:00:01]} 38. Rg2 {[%clk 0:00:34]} 1-0

[Event "January 9 Early 2024"]
[Site "https://www.chess.com"]
[Date "2024.01.11"]
[Round "2"]
[White "Richter, Paul"]
[Black "Wojtaszek, Radoslaw"]
[Result "0-1"]
[Board "159"]
[TimeControl "180+1"]
[WhiteFideId "2046350"]
[BlackFideId "1118358"]
[WhiteElo "2554"]
[BlackElo "2847"]
[WhiteTeam "USA"]
[BlackTeam "POL"]
[WhiteClock "0:00:04"]
[BlackClock "0:00:23"]

1. e4 {[%clk 0:03:00]}  c6 {[%clk 0:02:59]} 2. Nc3 {[%clk 0:03:00]}  d5 {[%clk 0:02:59]} 3. Nf3 {[%clk 0:03:01]}  Bg4 {[%clk 0:02:57]} 4. h3 {[%clk 0:03:00]}  Bxf3 {[%clk 0:02:57]} 5. Qxf3 {[%clk 0:03:01]}  e6 {[%clk 0:02:58]} 6. g3 {[%clk 0:03:01]}  Nf6 {[%clk 0:02:57]} 7. Bg2 {[%clk 0:03:00]}  Be7 {[%clk 0:02:57]} 8. d3 {[%clk 0:02:59]}  O-O {[%clk 0:02:55]} 9. O-O {[%clk 0:02:59]}  a5 {[%clk 0:02:53]} 10. g4 {[%clk 0:02:56]}  a4 {[%clk 0:02:52]} 11. a3 {[%clk 0:02:53]}  dxe4 {[%clk 0:02:25]} 12. dxe4 {[%clk 0:02:50]}  e5 {[%clk 0:02:25]} 13. Be3 {[%clk 0:02:39]}  Nfd7 {[%clk 0:02:17]} 14. Rfd1 {[%clk 0:02:33]}  Bg5 {[%clk 0:02:15]} 15. Bf1 {[%clk 0:02:29]}  Qe7 {[%clk 0:02:09]} 16. Bc4 {[%clk 0:02:22]}  Bxe3 {[%clk 0:02:06]} 17. Qxe3 {[%clk 0:02:21]}  b5 {[%clk 0:02:00]} 18. Ba2 {[%clk 0:02:19]}  Na6 {[%clk 0:01:54]} 19. Rd2 {[%clk 0:02:08]}  Nac5 {[%clk 0:01:47]} 20. Rad1 {[%clk 0:02:07]}  Rab8 {[%clk 0:01:47]} 21. Kg2 {[%clk 0:01:57]}  b4 {[%clk 0:01:47]} 22. Nxa4 {[%clk 0:01:53]}  Rb7 {[%clk 0:01:05]} 23. Nxc5 {[%clk 0:01:15]}  Nxc5 {[%clk 0:01:06]} 24. Rd6 {[%clk 0:01:01]}  Na4 {[%clk 0:01:05]} 25. Qb3 {[%clk 0:00:51]}  Nc5 {[%clk 0:01:05]} 26. Qc4 {[%clk 0:00:49]}  Ne6 {[%clk 0:01:05]} 27. axb4 {[%clk 0:00:35]}  Nf4+ {[%clk 0:01:02]} 28. Kg3 {[%clk 0:00:34]}  h5 {[%clk 0:00:50]} 29. Rxc6 {[%clk 0:00:20]}  Rxb4 {[%clk 0:00:44]} 30. Qc5 {[%clk 0:00:15]}  Ne2+ {[%clk 0:00:26]} 31. Kh2 {[%clk 0:00:10]}  Qh4 {[%clk 0:00:26]} 32. Qxf8+ {[%clk 0:00:05]}  Kxf8 {[%clk 0:00:26]} 33. Rc8+ {[%clk 0:00:05]}  Ke7 {[%clk 0:00:25]} 34. Rc7+ {[%clk 0:00:06]}  Kf6 {[%clk 0:00:24]} 35. Rc6+ {[%clk 0:00:04]}  Kg5 {[%clk 0:00:23]} 0-1

[Event "January 9 Early 2024"]
[Site "https://www.chess.com"]
[Date "2024.01.11"]
[Round "2"]
[White "Ozer, Omer Faruk"]
[Black "Sultanbek, Zeinep"]
[Result "1-0"]
[Board "160"]
[TimeControl "180+1"]
[WhiteFideId "6354564"]
[BlackFideId "13710419"]
[WhiteElo "2726"]
[BlackElo "2319"]
[WhiteTeam "TUR"]
[BlackTeam "KAZ"]
[WhiteClock "0:00:17"]
[BlackClock "0:00:03"]

1. d4 {[%clk 0:03:00]}  d5 {[%clk 0:02:59]} 2. c4 {[%clk 0:03:00]}  e6 {[%clk 0:02:59]} 3. Nc3 {[%clk 0:03:00]}  Be7 {[%clk 0:03:00]} 4. e4 {[%clk 0:02:48]}  dxe4 {[%clk 0:02:59]} 5. Nxe4 {[%clk 0:02:49]}  Bb4+ {[%clk 0:03:00]} 6. Nc3 {[%clk 0:02:48]}  c5 {[%clk 0:02:52]} 7. a3 {[%clk 0:02:38]}  Ba5 {[%clk 0:02:44]} 8. Be3 {[%clk 0:02:01]}  Nf6 {[%clk 0:02:04]} 9. dxc5 {[%clk 0:01:54]}  Bxc3+ {[%clk 0:01:56]} 10. bxc3 {[%clk 0:01:53]}  Qa5 {[%clk 0:01:56]} 11. Qb3 {[%clk 0:01:46]}  O-O {[%clk 0:01:39]} 12. Nf3 {[%clk 0:01:44]}  Ne4 {[%clk 0:01:23]} 13. Qb4 {[%clk 0:01:40]}  Qc7 {[%clk 0:01:23]} 14. Bd3 {[%clk 0:01:38]}  Na6 {[%clk 0:01:22]} 15. Qb1 {[%clk 0:01:31]}  Nf6 {[%clk 0:00:50]} 16. Bd4 {[%clk 0:00:53]}  Nxc5 {[%clk 0:00:48]} 17. Bxf6 {[%clk 0:00:52]}  Nxd3+ {[%clk 0:00:47]} 18. Qxd3 {[%clk 0:00:53]}  gxf6 {[%clk 0:00:48]} 19. O-O {[%clk 0:00:50]}  b6 {[%clk 0:00:36]} 20. Qd4 {[%clk 0:00:45]}  e5 {[%clk 0:00:21]} 21. Qh4 {[%clk 0:00:43]}  Bb7 {[%clk 0:00:20]} 22. Qxf6 {[%clk 0:00:35]}  Bxf3 {[%clk 0:00:17]} 23. gxf3 {[%clk 0:00:36]}  Qd8 {[%clk 0:00:04]} 24. Qxe5 {[%clk 0:00:35]}  Re8 {[%clk 0:00:03]} 25. Qh5 {[%clk 0:00:26]}  Qf6 {[%clk 0:00:02]} 26. Kh1 {[%clk 0:00:25]}  Re5 {[%clk 0:00:03]} 27. Rg1+ {[%clk 0:00:21]}  Kh8 {[%clk 0:00:03]} 28. Qg4 {[%clk 0:00:21]}  Rf5 {[%clk 0:00:03]} 29. Rg3 {[%clk 0:00:20]}  h5 {[%clk 0:00:03]} 30. Qe4 {[%clk 0:00:17]} 1-0

[Event "January 9 Early 2024"]
[Site "https://www.chess.com"]
[Date "2024.01.11"]
[Round "2"]
[White "Malikova, Marjona"]
[Black "Batsiashvili, Nino"]
[Result "0-1"]
[Board "163"]
[TimeControl "180+1"]
[WhiteFideId "14212463"]
[BlackFideId "13602993"]
[WhiteElo "2298"]
[BlackElo "2522"]
[WhiteTeam "UZB"]
[BlackTeam "GEO"]
[WhiteClock "0:00:19"]
[BlackClock "0:00:16"]

1. d4 {[%clk 0:03:00]}  g6 {[%clk 0:02:57]} 2. c4 {[%clk 0:03:00]}  f5 {[%clk 0:02:55]} 3. Nc3 {[%clk 0:02:59]}  Nf6 {[%clk 0:02:55]} 4. g3 {[%clk 0:02:59]}  Bg7 {[%clk 0:02:55]} 5. Bg2 {[%clk 0:02:59]}  O-O {[%clk 0:02:55]} 6. Nh3 {[%clk 0:03:00]}  d6 {[%clk 0:02:54]} 7. O-O {[%clk 0:03:00]}  e5 {[%clk 0:02:51]} 8. d5 {[%clk 0:02:41]}  h6 {[%clk 0:02:39]} 9. f3 {[%clk 0:02:35]}  a5 {[%clk 0:02:33]} 10. Nf2 {[%clk 0:02:35]}  Na6 {[%clk 0:02:33]} 11. a3 {[%clk 0:02:33]}  Nc5 {[%clk 0:02:23]} 12. Be3 {[%clk 0:02:34]}  g5 {[%clk 0:02:19]} 13. Bxc5 {[%clk 0:02:22]}  dxc5 {[%clk 0:02:18]} 14. e4 {[%clk 0:02:23]}  f4 {[%clk 0:02:16]} 15. g4 {[%clk 0:02:20]}  h5 {[%clk 0:02:15]} 16. h3 {[%clk 0:02:19]}  Rf7 {[%clk 0:02:14]} 17. Nb5 {[%clk 0:02:14]}  Bf8 {[%clk 0:02:13]} 18. b4 {[%clk 0:02:11]}  axb4 {[%clk 0:02:11]} 19. axb4 {[%clk 0:02:12]}  Rxa1 {[%clk 0:02:10]} 20. Qxa1 {[%clk 0:02:13]}  Qe8 {[%clk 0:01:58]} 21. bxc5 {[%clk 0:02:01]}  Bxc5 {[%clk 0:01:57]} 22. Kh1 {[%clk 0:02:01]}  hxg4 {[%clk 0:01:50]} 23. fxg4 {[%clk 0:02:00]}  f3 {[%clk 0:01:25]} 24. Bxf3 {[%clk 0:01:53]}  Nxd5 {[%clk 0:01:24]} 25. Nd3 {[%clk 0:01:44]}  Ne3 {[%clk 0:01:17]} 26. Nxe5 {[%clk 0:01:09]}  Nxf1 {[%clk 0:01:16]} 27. Nxf7 {[%clk 0:01:10]}  Qxf7 {[%clk 0:00:47]} 28. Qxf1 {[%clk 0:01:08]}  c6 {[%clk 0:00:38]} 29. Nc3 {[%clk 0:01:01]}  Be6 {[%clk 0:00:38]} 30. Be2 {[%clk 0:01:00]}  Qg7 {[%clk 0:00:37]} 31. Na4 {[%clk 0:00:52]}  Bd4 {[%clk 0:00:37]} 32. Qd1 {[%clk 0:00:43]}  Qe5 {[%clk 0:00:36]} 33. Bd3 {[%clk 0:00:39]}  Qg3 {[%clk 0:00:27]} 34. Qf1 {[%clk 0:00:36]}  Kg7 {[%clk 0:00:22]} 35. c5 {[%clk 0:00:35]}  Bb3 {[%clk 0:00:16]} 36. Nb6 {[%clk 0:00:34]}  Bd1 {[%clk 0:00:17]} 37. Qxd1 {[%clk 0:00:19]}  Qxh3# {[%clk 0:00:16]} 0-1

[Event "January 9 Early 2024"]
[Site "https://www.chess.com"]
[Date "2024.01.11"]
[Round "2"]
[White "Md, Sariatullah"]
[Black "Manukian, Artak"]
[Result "0-1"]
[Board "165"]
[TimeControl "180+1"]
[WhiteFideId "10207333"]
[BlackFideId "13301373"]
[WhiteElo "2207"]
[BlackElo "2480"]
[WhiteTeam "BAN"]
[BlackTeam "ARM"]
[WhiteClock "0:00:06"]
[BlackClock "0:00:34"]

1. e4 {[%clk 0:03:00]}  c6 {[%clk 0:02:59]} 2. d4 {[%clk 0:03:00]}  d5 {[%clk 0:02:59]} 3. e5 {[%clk 0:03:01]}  Bf5 {[%clk 0:02:59]} 4. Ne2 {[%clk 0:03:01]}  e6 {[%clk 0:02:59]} 5. Ng3 {[%clk 0:03:01]}  Bg6 {[%clk 0:03:00]} 6. h4 {[%clk 0:03:01]}  h6 {[%clk 0:03:00]} 7. h5 {[%clk 0:03:02]}  Bh7 {[%clk 0:03:00]} 8. Bd3 {[%clk 0:03:02]}  Bxd3 {[%clk 0:03:00]} 9. cxd3 {[%clk 0:03:03]}  c5 {[%clk 0:02:54]} 10. dxc5 {[%clk 0:03:04]}  Bxc5 {[%clk 0:02:54]} 11. d4 {[%clk 0:03:04]}  Bb4+ {[%clk 0:02:53]} 12. Nc3 {[%clk 0:03:04]}  Nc6 {[%clk 0:02:52]} 13. Qg4 {[%clk 0:03:04]}  Kf8 {[%clk 0:02:52]} 14. O-O {[%clk 0:03:03]}  Nge7 {[%clk 0:02:51]} 15. Be3 {[%clk 0:02:59]}  Qd7 {[%clk 0:02:50]} 16. f4 {[%clk 0:02:58]}  Bxc3 {[%clk 0:02:47]} 17. bxc3 {[%clk 0:02:57]}  Nf5 {[%clk 0:02:47]} 18. Nxf5 {[%clk 0:02:56]}  exf5 {[%clk 0:02:48]} 19. Qf3 {[%clk 0:02:56]}  Na5 {[%clk 0:02:44]} 20. Rfe1 {[%clk 0:02:43]}  Re8 {[%clk 0:02:42]} 21. Bf2 {[%clk 0:02:40]}  Nc4 {[%clk 0:02:37]} 22. Re2 {[%clk 0:02:06]}  Kg8 {[%clk 0:02:32]} 23. Rb1 {[%clk 0:02:04]}  Kh7 {[%clk 0:02:31]} 24. a4 {[%clk 0:02:01]}  a6 {[%clk 0:02:26]} 25. Kh2 {[%clk 0:01:55]}  Re6 {[%clk 0:02:17]} 26. g4 {[%clk 0:01:51]}  Rb6 {[%clk 0:02:06]} 27. Rg1 {[%clk 0:01:49]}  Re8 {[%clk 0:01:51]} 28. g5 {[%clk 0:01:16]}  Kh8 {[%clk 0:01:42]} 29. Bh4 {[%clk 0:01:09]}  Rg8 {[%clk 0:01:30]} 30. Reg2 {[%clk 0:00:50]}  Qxa4 {[%clk 0:01:17]} 31. gxh6 {[%clk 0:00:48]}  Rxh6 {[%clk 0:01:16]} 32. Bf6 {[%clk 0:00:48]}  Nd2 {[%clk 0:01:07]} 33. Qe2 {[%clk 0:00:29]}  Qc4 {[%clk 0:00:51]} 34. Qd1 {[%clk 0:00:10]}  Qxc3 {[%clk 0:00:46]} 35. Rxg7 {[%clk 0:00:09]}  Nf1+ {[%clk 0:00:38]} 36. Kh1 {[%clk 0:00:06]}  Qh3# {[%clk 0:00:34]} 0-1

[Event "January 9 Early 2024"]
[Site "https://www.chess.com"]
[Date "2024.01.11"]
[Round "2"]
[White "Mrudul Dehankar"]
[Black "Mena, Martin"]
[Result "1-0"]
[Board "167"]
[TimeControl "180+1"]
[WhiteFideId "25096990"]
[BlackFideId "10651225"]
[WhiteElo "2441"]
[BlackElo "2078"]
[WhiteTeam "IND"]
[BlackTeam "EGY"]
[WhiteClock "0:00:11"]
[BlackClock "0:00:02"]

1. e4 {[%clk 0:02:27]}  c6 {[%clk 0:02:59]} 2. d4 {[%clk 0:02:26]}  d5 {[%clk 0:03:00]} 3. Nc3 {[%clk 0:02:25]}  dxe4 {[%clk 0:03:00]} 4. Nxe4 {[%clk 0:02:26]}  Nd7 {[%clk 0:03:00]} 5. Bc4 {[%clk 0:02:21]}  Ngf6 {[%clk 0:02:48]} 6. Ng5 {[%clk 0:02:19]}  e6 {[%clk 0:02:46]} 7. N1f3 {[%clk 0:01:51]}  h6 {[%clk 0:02:38]} 8. Nh3 {[%clk 0:01:51]}  Bd6 {[%clk 0:02:29]} 9. Qe2 {[%clk 0:01:46]}  Nb6 {[%clk 0:02:29]} 10. Bb3 {[%clk 0:01:46]}  O-O {[%clk 0:02:27]} 11. Nf4 {[%clk 0:01:43]}  Nbd5 {[%clk 0:02:06]} 12. Nd3 {[%clk 0:01:42]}  Qc7 {[%clk 0:01:56]} 13. Nfe5 {[%clk 0:01:24]}  Nd7 {[%clk 0:01:30]} 14. O-O {[%clk 0:01:10]}  Nb4 {[%clk 0:00:52]} 15. Nxb4 {[%clk 0:00:43]}  Nxe5 {[%clk 0:00:43]} 16. dxe5 {[%clk 0:00:42]}  Bxb4 {[%clk 0:00:43]} 17. c3 {[%clk 0:00:39]}  Bc5 {[%clk 0:00:42]} 18. Bc2 {[%clk 0:00:38]}  Rd8 {[%clk 0:00:23]} 19. Qe4 {[%clk 0:00:34]}  Kf8 {[%clk 0:00:16]} 20. Bf4 {[%clk 0:00:27]}  Ke7 {[%clk 0:00:09]} 21. Qh7 {[%clk 0:00:24]}  g5 {[%clk 0:00:08]} 22. Bg3 {[%clk 0:00:15]}  Qb6 {[%clk 0:00:04]} 23. b4 {[%clk 0:00:12]}  Bxb4 {[%clk 0:00:02]} 24. cxb4 {[%clk 0:00:11]}  Qxb4 {[%clk 0:00:02]} 25. Qxh6 {[%clk 0:00:11]}  Bd7 {[%clk 0:00:02]} 26. Qxg5+ {[%clk 0:00:11]} 1-0

[Event "January 9 Early 2024"]
[Site "https://www.chess.com"]
[Date "2024.01.11"]
[Round "2"]
[White "Pranesh M"]
[Black "Moksh Amit Doshi"]
[Result "1-0"]
[Board "168"]
[TimeControl "180+1"]
[WhiteFideId "35028600"]
[BlackFideId "25064967"]
[WhiteElo "2953"]
[BlackElo "2623"]
[WhiteTeam "IND"]
[BlackTeam "IND"]
[WhiteClock "0:00:11"]
[BlackClock "0:00:26"]

1. e4 {[%clk 0:02:59]}  e5 {[%clk 0:02:50]} 2. Bc4 {[%clk 0:02:59]}  Nf6 {[%clk 0:02:47]} 3. d3 {[%clk 0:02:59]}  Nc6 {[%clk 0:02:45]} 4. Nc3 {[%clk 0:02:58]}  Bc5 {[%clk 0:02:43]} 5. f4 {[%clk 0:02:58]}  d6 {[%clk 0:02:39]} 6. Nf3 {[%clk 0:02:55]}  Bg4 {[%clk 0:02:34]} 7. Na4 {[%clk 0:02:49]}  Nd4 {[%clk 0:02:27]} 8. fxe5 {[%clk 0:02:31]}  Nd7 {[%clk 0:02:16]} 9. Nxc5 {[%clk 0:02:09]}  Bxf3 {[%clk 0:02:02]} 10. gxf3 {[%clk 0:01:52]}  Nxc5 {[%clk 0:01:57]} 11. exd6 {[%clk 0:01:46]}  Qh4+ {[%clk 0:01:46]} 12. Kf1 {[%clk 0:01:46]}  Qh3+ {[%clk 0:01:20]} 13. Kf2 {[%clk 0:01:46]}  cxd6 {[%clk 0:01:18]} 14. Be3 {[%clk 0:01:44]}  Qh4+ {[%clk 0:01:17]} 15. Kg2 {[%clk 0:01:34]}  Nde6 {[%clk 0:01:16]} 16. Qd2 {[%clk 0:01:30]}  O-O {[%clk 0:01:15]} 17. Rag1 {[%clk 0:01:28]}  Nd7 {[%clk 0:01:13]} 18. d4 {[%clk 0:01:26]}  Nf6 {[%clk 0:01:05]} 19. c3 {[%clk 0:01:18]}  Nh5 {[%clk 0:01:05]} 20. Kf1 {[%clk 0:01:18]}  Kh8 {[%clk 0:01:05]} 21. Qg2 {[%clk 0:01:12]}  Rae8 {[%clk 0:00:58]} 22. Qg4 {[%clk 0:01:00]}  Qxg4 {[%clk 0:00:58]} 23. Rxg4 {[%clk 0:01:01]}  f5 {[%clk 0:00:58]} 24. Rh4 {[%clk 0:00:50]}  g6 {[%clk 0:00:50]} 25. Bh6 {[%clk 0:00:49]}  Rf6 {[%clk 0:00:49]} 26. Bxe6 {[%clk 0:00:32]}  Rexe6 {[%clk 0:00:47]} 27. Kg2 {[%clk 0:00:29]}  Rf7 {[%clk 0:00:36]} 28. Bg5 {[%clk 0:00:24]}  Kg7 {[%clk 0:00:33]} 29. Re1 {[%clk 0:00:21]}  h6 {[%clk 0:00:33]} 30. Bd2 {[%clk 0:00:18]}  Rfe7 {[%clk 0:00:34]} 31. Kf2 {[%clk 0:00:12]}  Kf7 {[%clk 0:00:25]} 32. exf5 {[%clk 0:00:11]}  gxf5 {[%clk 0:00:26]} 33. Rxh5 {[%clk 0:00:11]} 1-0

[Event "January 9 Early 2024"]
[Site "https://www.chess.com"]
[Date "2024.01.11"]
[Round "2"]
[White "Krzywda, Andrzej"]
[Black "Schnaider, Ilan"]
[Result "0-1"]
[Board "169"]
[TimeControl "180+1"]
[WhiteFideId "1114565"]
[BlackFideId "169013"]
[WhiteElo "2397"]
[BlackElo "2750"]
[WhiteTeam "POL"]
[BlackTeam "ARG"]
[WhiteClock "0:00:15"]
[BlackClock "0:00:22"]

1. e4 {[%clk 0:03:00]}  c5 {[%clk 0:02:58]} 2. Nf3 {[%clk 0:03:00]}  d6 {[%clk 0:02:57]} 3. d4 {[%clk 0:03:01]}  cxd4 {[%clk 0:02:58]} 4. Nxd4 {[%clk 0:03:01]}  Nf6 {[%clk 0:02:58]} 5. Nc3 {[%clk 0:03:02]}  a6 {[%clk 0:02:59]} 6. Be3 {[%clk 0:03:02]}  Ng4 {[%clk 0:02:59]} 7. Bc1 {[%clk 0:03:02]}  Nf6 {[%clk 0:03:00]} 8. Be3 {[%clk 0:03:02]}  Ng4 {[%clk 0:03:00]} 9. Bc1 {[%clk 0:03:03]}  Nc6 {[%clk 0:03:01]} 10. Be2 {[%clk 0:02:40]}  Nf6 {[%clk 0:02:51]} 11. O-O {[%clk 0:02:33]}  e5 {[%clk 0:02:48]} 12. Nb3 {[%clk 0:02:31]}  Be7 {[%clk 0:02:48]} 13. f4 {[%clk 0:02:28]}  O-O {[%clk 0:02:49]} 14. Kh1 {[%clk 0:02:28]}  b5 {[%clk 0:02:44]} 15. a3 {[%clk 0:02:17]}  Bb7 {[%clk 0:02:44]} 16. Be3 {[%clk 0:02:16]}  Rc8 {[%clk 0:02:43]} 17. Qd2 {[%clk 0:02:10]}  exf4 {[%clk 0:02:41]} 18. Rxf4 {[%clk 0:02:06]}  Ne5 {[%clk 0:02:41]} 19. Bd3 {[%clk 0:01:44]}  Nfg4 {[%clk 0:02:19]} 20. Rff1 {[%clk 0:01:32]}  Nxe3 {[%clk 0:02:07]} 21. Qxe3 {[%clk 0:01:33]}  Bg5 {[%clk 0:02:02]} 22. Qh3 {[%clk 0:01:32]}  h6 {[%clk 0:01:52]} 23. Nd4 {[%clk 0:01:31]}  Ng6 {[%clk 0:01:39]} 24. Rae1 {[%clk 0:01:17]}  Rc5 {[%clk 0:01:03]} 25. Nf5 {[%clk 0:01:12]}  Nf4 {[%clk 0:00:46]} 26. Qf3 {[%clk 0:01:11]}  Rxf5 {[%clk 0:00:45]} 27. Qg4 {[%clk 0:00:49]}  Nxd3 {[%clk 0:00:40]} 28. cxd3 {[%clk 0:00:47]}  Rxf1+ {[%clk 0:00:39]} 29. Rxf1 {[%clk 0:00:48]}  Qe7 {[%clk 0:00:38]} 30. Ne2 {[%clk 0:00:47]}  Bc8 {[%clk 0:00:36]} 31. Qf3 {[%clk 0:00:41]}  f5 {[%clk 0:00:37]} 32. exf5 {[%clk 0:00:37]}  Rxf5 {[%clk 0:00:37]} 33. Nf4 {[%clk 0:00:26]}  Rxf4 {[%clk 0:00:22]} 34. Qd1 {[%clk 0:00:21]}  Rxf1+ {[%clk 0:00:19]} 35. Qxf1 {[%clk 0:00:21]}  Qf7 {[%clk 0:00:20]} 36. Qd1 {[%clk 0:00:20]}  Bb7 {[%clk 0:00:20]} 37. h3 {[%clk 0:00:16]}  Qf2 {[%clk 0:00:20]} 38. Qg4 {[%clk 0:00:15]}  Qf1+ {[%clk 0:00:21]} 39. Kh2 {[%clk 0:00:15]}  Bf4+ {[%clk 0:00:21]} 40. g3 {[%clk 0:00:15]}  Qh1# {[%clk 0:00:22]} 0-1

[Event "January 9 Early 2024"]
[Site "https://www.chess.com"]
[Date "2024.01.11"]
[Round "2"]
[White "Zhu, Jiner"]
[Black "Daneshvar, Bardiya"]
[Result "0-1"]
[Board "171"]
[TimeControl "180+1"]
[WhiteFideId "8608059"]
[BlackFideId "12576468"]
[WhiteElo "2619"]
[BlackElo "2950"]
[WhiteTeam "CHN"]
[BlackTeam "IRI"]
[WhiteClock "0:00:03"]
[BlackClock "0:00:54"]

1. e4 {[%clk 0:03:00]}  c6 {[%clk 0:02:58]} 2. d4 {[%clk 0:03:00]}  Na6 {[%clk 0:02:59]} 3. Nc3 {[%clk 0:02:59]}  Nc7 {[%clk 0:02:59]} 4. Be3 {[%clk 0:02:58]}  d5 {[%clk 0:02:59]} 5. e5 {[%clk 0:02:58]}  h5 {[%clk 0:02:57]} 6. Bd3 {[%clk 0:02:54]}  g6 {[%clk 0:02:57]} 7. f4 {[%clk 0:02:52]}  Nh6 {[%clk 0:02:57]} 8. Nf3 {[%clk 0:02:51]}  Bf5 {[%clk 0:02:57]} 9. Be2 {[%clk 0:02:50]}  Bg4 {[%clk 0:02:56]} 10. h3 {[%clk 0:02:48]}  Bxf3 {[%clk 0:02:56]} 11. Bxf3 {[%clk 0:02:49]}  Nf5 {[%clk 0:02:55]} 12. Bf2 {[%clk 0:02:49]}  h4 {[%clk 0:02:56]} 13. Ne2 {[%clk 0:02:48]}  e6 {[%clk 0:02:56]} 14. O-O {[%clk 0:02:48]}  Be7 {[%clk 0:02:57]} 15. c3 {[%clk 0:02:48]}  b6 {[%clk 0:02:55]} 16. b4 {[%clk 0:02:45]}  a5 {[%clk 0:02:54]} 17. a3 {[%clk 0:02:45]}  Qc8 {[%clk 0:02:54]} 18. Qd3 {[%clk 0:02:27]}  Qa6 {[%clk 0:02:52]} 19. Qxa6 {[%clk 0:02:27]}  Rxa6 {[%clk 0:02:53]} 20. Rfb1 {[%clk 0:02:27]}  Kd7 {[%clk 0:02:51]} 21. bxa5 {[%clk 0:02:26]}  bxa5 {[%clk 0:02:41]} 22. a4 {[%clk 0:02:26]}  Raa8 {[%clk 0:02:38]} 23. Rb7 {[%clk 0:02:23]}  Rhb8 {[%clk 0:02:38]} 24. Rab1 {[%clk 0:02:23]}  Rxb7 {[%clk 0:02:38]} 25. Rxb7 {[%clk 0:02:24]}  Kc8 {[%clk 0:02:38]} 26. Rb1 {[%clk 0:02:23]}  Ra6 {[%clk 0:02:29]} 27. Nc1 {[%clk 0:02:22]}  Na8 {[%clk 0:02:28]} 28. Be2 {[%clk 0:02:18]}  Rb6 {[%clk 0:02:28]} 29. Rb3 {[%clk 0:02:09]}  Ba3 {[%clk 0:02:15]} 30. Rxa3 {[%clk 0:01:39]}  Rb1 {[%clk 0:02:14]} 31. Rb3 {[%clk 0:01:31]}  Rxc1+ {[%clk 0:02:13]} 32. Kh2 {[%clk 0:01:32]}  Rc2 {[%clk 0:01:57]} 33. Ba6+ {[%clk 0:01:31]}  Kd7 {[%clk 0:01:56]} 34. Be1 {[%clk 0:01:24]}  Ne3 {[%clk 0:01:38]} 35. Rb7+ {[%clk 0:00:34]}  Nc7 {[%clk 0:01:31]} 36. c4 {[%clk 0:00:34]}  Kc8 {[%clk 0:01:17]} 37. Rb3+ {[%clk 0:00:12]}  Nxa6 {[%clk 0:01:10]} 38. Rxe3 {[%clk 0:00:13]}  Rxc4 {[%clk 0:01:04]} 39. Bxa5 {[%clk 0:00:09]}  Rxd4 {[%clk 0:01:02]} 40. Rf3 {[%clk 0:00:05]}  Rxa4 {[%clk 0:00:58]} 41. Be1 {[%clk 0:00:05]}  d4 {[%clk 0:00:57]} 42. Bxh4 {[%clk 0:00:05]}  c5 {[%clk 0:00:58]} 43. Bf2 {[%clk 0:00:06]}  Ra2 {[%clk 0:00:57]} 44. h4 {[%clk 0:00:05]}  Nb4 {[%clk 0:00:57]} 45. Kh3 {[%clk 0:00:02]}  Rc2 {[%clk 0:00:54]} 46. g4 {[%clk 0:00:03]}  d3 {[%clk 0:00:54]} 0-1